{"text_format":"1","workbook":"xlsx","n_sheets":1,"sheets":["Suma pkt"],"not_rendered":{"charts":0,"images":0,"macros":1,"external_links":0,"defined_names":0,"comments":0,"pivot_tables":0},"unopened":[],"bounds":{"document_bytes":16777216,"sheet_cells":100000,"rows_first":2000,"rows_last":500,"rows_between":2000,"halvings":0,"cell_chars":16384,"cell_head_chars":4096},"cells_cut":0,"cells_raw":0,"read":"whole","date_system":"1900"}

{"sheet":"Suma pkt","index":0,"n_rows":28,"n_cols":10,"rows_kept":28,"cut":false,"hidden":false,"merged":[]}
[]
[]
[null,"Miejsce","GRUPA ZIELONA","I ","II","III","IV","V","VI","SUMA"]
[null,1,"PRZEMYSŁAW KOZIKOWSKI   ",13,7,4,null,null,null,{"$f":"SUM(D4:I4)","v":24}]
[null,2,"ELKE SOWUL                            ",9,null,9,null,null,null,{"$f":"SUM(D5:I5)","v":18}]
[null,3,"WARCABA JAKUB ",null,11,6,null,null,null,{"$f":"SUM(D6:I6)","v":17}]
[null,4,"JANUSZ SZYJKA",null,null,13,null,null,null,{"$f":"SUM(D7:I7)","v":13}]
[null,5,"KRZYSZTOF KORONOWSKI    ",6,null,2,null,null,null,{"$f":"SUM(D8:I8)","v":8}]
[null,6,"WITOLD BAUER                      ",3,null,3,null,null,null,{"$f":"SUM(D9:I9)","v":6}]
[null,7,"CEZARY DYBIŃSKI                    ",4,null,null,null,null,null,{"$f":"SUM(D10:I10)","v":4}]
[null,8,"LANGOWSKA ELŻBIETA",null,4,null,null,null,null,{"$f":"SUM(D11:I11)","v":4}]
[null,9,"ZBIGNIEW KŁOSZEWSKI   ",2,1,null,null,null,null,{"$f":"SUM(D12:I12)","v":3}]
[null,10,"SZERSZEŃ SŁAWOMIR",null,2,1,null,null,null,{"$f":"SUM(D13:I13)","v":3}]
[null,11,"SEBASTIAN KOWALCZYK",1,null,null,null,null,null,{"$f":"SUM(D14:I14)","v":1}]
[]
[]
[null,"Miejsce","GRUPA CZERWONA","I ","II","III","IV","V","VI","SUMA"]
[null,1,"ANDRZEJ SOCHA     ",14,10,14,null,null,null,{"$f":"SUM(D18:I18)","v":38}]
[null,2,"AGNIESZKA KOZIKOWSKA  ",7,6,7,null,null,null,{"$f":"SUM(D19:I19)","v":20}]
[null,3,"ALICJA PROTOKOWICZ    ",10,null,10,null,null,null,{"$f":"SUM(D20:I20)","v":20}]
[null,4,"ROMAN RYGIEL                   ",4,1,5,null,null,null,{"$f":"SUM(D21:I21)","v":10}]
[null,5,"JACEK KRZYŻANIAK",5,null,3,null,null,null,{"$f":"SUM(D22:I22)","v":8}]
[null,6,"KRZYSZTOF PARDA             ",2,null,2,null,null,null,{"$f":"SUM(D23:I23)","v":4}]
[null,7,"SEBASTIAN WOJNIAK",null,null,4,null,null,null,{"$f":"SUM(D24:I24)","v":4}]
[null,8,"RENATA TYMECKA             ",3,null,null,null,null,null,{"$f":"SUM(D25:I25)","v":3}]
[null,9,"LANGOWSKI KRZYSZTOF",null,3,null,null,null,null,{"$f":"SUM(D26:I26)","v":3}]
[null,10,"ZOFIA CIUPIŃSKA                ",1,null,null,null,null,null,{"$f":"SUM(D27:I27)","v":1}]
[null,11,"RENATA SOCHA",null,null,1,null,null,null,{"$f":"SUM(D28:I28)","v":1}]